Cogmind - Beta 11 @@@ ROGUE MODE // 2022.03.27 @ 21:04:19 Player: Happytimes Result: Self-destructed Performance ------------- Evolutions (2) 1000 Regions Visited (5) 1000 Robots Destroyed (41) 205 Value Destroyed (1049) 1049 Prototype IDs (9) 180 Alien Tech Used (0) 0 Bonus (440) 440 TOTAL SCORE: 3874 Bonus ------- High Alert Combat Kills 76 Follower Combat Kills 387 Friendly Fire -23 Cogmind --------- Core Integrity 157/550 Matter 149/300 Energy 99/100 System Corruption 0% Temperature Warm (120) Movement Hovering (42) Location -8/Materials Parts ------- > --- POWER (2) -------- (None) > --- PROPULSION (3) --- Improved Airjet Improved Airjet Improved Airjet > --- UTILITY (3) ------ Medium Storage Unit Improved Propulsion Shielding System Shield > --- WEAPON (3) ------- Heavy Assault Cannon > --- INVENTORY (10) --- Armored Treads Armored Treads Aerolev Unit Aerolev Unit Cooling System Weapon Cycler Graphene Brace Hacking Suite Hacking Suite Rocket Launcher Peak State ------------ > --- POWER ------------ Light Nuclear Core Light Nuclear Core > --- PROPULSION ------- Improved Airjet Improved Airjet Improved Airjet > --- UTILITY ---------- Small Storage Unit Weapon Cycler System Shield > --- WEAPON ----------- EM Pulse Cannon Gauss Rifle Gauss Rifle > --- INVENTORY -------- Aerolev Unit Aerolev Unit Improved Airjet Improved Heat Sink Graphene Brace Hacking Suite Heavy Particle Gun Rocket Launcher [Rating: 43] Favorites ----------- Power Light Ion Engine Engine Light Ion Engine Power Core Light Nuclear Core Propulsion Improved Airjet Treads Advanced Treads Leg Aluminum Leg Wheel Wheel Hover Unit Improved Airjet Flight Unit Flight Unit Utility Small Storage Unit Device Weapon Cycler Storage Small Storage Unit Hackware System Shield Protection Improved Propulsion Shielding Weapon Gauss Rifle Energy Gun EM Pulse Gun Energy Cannon Beam Cannon Ballistic Gun Gauss Rifle Ballistic Cannon Heavy Assault Cannon Launcher Rocket Launcher Impact Weapon Hammer Build | -11 -10 -10 -10 -9 -8 ------- Run | Scr Mat Min Exi Min Mat Slots Evolved 4 | . . . . . 4 Power 1 | . . . . . 1 Propulsion 1 | . . . . . 1 Utility 1 | . . . . . 1 Weapon 1 | . . . . . 1 Parts Attached 56 | 6 2 6 . 2 40 Power 5 | 1 . . . . 4 Engine 2 | 1 . . . . 1 Core 3 | . . . . . 3 Reactor . | . . . . . . Propulsion 17 | 2 1 4 . 1 9 Treads 1 | . . . . . 1 Leg 2 | . . . . 1 1 Wheel 3 | 2 1 . . . . Hover 8 | . . 1 . . 7 Flight 3 | . . 3 . . . Utility 7 | 1 . 1 . . 5 Device 3 | . . 1 . . 2 Storage 2 | 1 . . . . 1 Processor . | . . . . . . Hackware 1 | . . . . . 1 Protection 1 | . . . . . 1 Artifact . | . . . . . . Weapon 27 | 2 1 1 . 1 22 Energy Gun 6 | 1 . . . . 5 Energy Cannon 2 | . 1 . . . 1 Ballistic Gun 13 | 1 . 1 . . 11 Ballistic Cannon 1 | . . . . . 1 Launcher 4 | . . . . . 4 Special Weapon . | . . . . . . Impact Weapon 1 | . . . . 1 . Slashing Weapon . | . . . . . . Piercing Weapon . | . . . . . . Special Melee Weapon . | . . . . . . Unidentified Prototypes 7 | . . 1 . . 6 Parts Lost 10 | . . 3 . 3 4 Power 2 | . . . . . 2 Propulsion 4 | . . 3 . 1 . Utility 2 | . . . . 1 1 Weapon 2 | . . . . 1 1 Highest Loss Streak 3 | . . 2 . 3 3 To Critical Strikes 1 | . . . . 1 . Average Slot Usage (%) 84 | . 83 85 100 82 85 Engine 8 | . 14 14 14 14 4 Core 5 | . . . . . 8 Leg 4 | . . . . 12 4 Wheel 3 | . 26 7 . . . Hover 12 | . . 4 . . 18 Flight 5 | . . 12 28 14 2 Device 4 | . . 3 14 . 6 Storage 10 | . 14 14 14 14 9 Hackware 5 | . . . . . 8 Energy Cannon 3 | . 6 14 14 . . Ballistic Gun 14 | . 14 14 14 14 15 Ballistic Cannon 2 | . . . . . 3 Impact Weapon 2 | . . . . 12 2 Naked Turns . | . . . . . . Heaviest Build 38 | 11 12 13 13 11 38 Greatest Support 27 | 20 20 20 8 10 27 Greatest Overweight (x) 3 | . . 3 1 2 2 Average Overweight (x) . | . . 1 1 . . Largest Inventory Capacity 10 | 8 8 8 8 8 10 Average Capacity 8 | 6 8 8 8 8 8 Most Carried 10 | 5 3 5 4 6 10 Average Carried 5 | 1 . 2 4 4 7 Final Capacity 10 | 8 8 8 8 8 10 Final Carried 10 | . 2 4 4 4 10 Class Distribution -------------------- 42% | Gunner 33% | Mutant 24% | Scavenger-Mutant Dominant Class ---------------- Mutant | -10/Materials Mutant | -10/Mines Mutant | -10/Exiles Scavenger-Mutant | -9/Mines Gunner | -8/Materials Resources | -11 -10 -10 -10 -9 -8 ----------- Run | Scr Mat Min Exi Min Mat Matter Collected 1293 | 260 2 70 . 29 932 Remotely . | . . . . . . Salvage Created 1187 | . 15 169 . 92 911 Parts 84 | . 1 14 . 4 65 Haulers Intercepted 5 | . . . . . 5 Recyclers Shooed . | . . . . . . Parts Field Recycled . | . . . . . . Retrieved Matter . | . . . . . . Parts Self-Destructed . | . . . . . . Prevented . | . . . . . . Kills | -11 -10 -10 -10 -9 -8 ------- Run | Scr Mat Min Exi Min Mat Combat Hostiles Destroyed 26 | . . 5 . 2 19 Guns 13 | . . 1 . 1 11 Cannons 5 | . . 3 . 1 1 AOE 8 | . . 1 . . 7 Classes Destroyed 9 | . 1 3 . 1 4 Builder 2 | . . . . . 2 Hauler 5 | . . . . . 5 Recycler 1 | . . 1 . . . Operator 4 | . 1 . . . 3 Watcher 3 | . . . . . 3 Swarmer 11 | . . 3 . . 8 Grunt 12 | . . 2 . 1 9 Brawler 1 | . . . . 1 . Sentry 2 | . . . . . 2 Best Kill Streak 6 | . 1 3 . 2 6 Combat Bots Only 4 | . . 3 . 2 4 Max Kills in Single Turn 3 | . 1 1 . 1 3 Gunslinging 1 | . . . . . 1 Exploded 2 | . . 1 . . 2 Melee . | . . . . . . Uniques/NPCs Destroyed . | . . . . . . Combat | -11 -10 -10 -10 -9 -8 -------- Run | Scr Mat Min Exi Min Mat Damage Taken 2201 | . 38 317 . 124 1722 Core 496 | . . 74 . 29 393 Absorbed by Shields . | . . . . . . Redirected to Shielding 60 | . . . . . 60 Regen/Repaired (Parts) 38 | . 38 . . . . Core Remaining (%) 79 | 100 . . . 58 . Volleys Fired 90 | . 5 12 . 6 67 Largest 3 | . 2 2 . 2 3 Hottest 119 | . 80 80 . 80 119 Shots Fired 213 | . 10 24 . 11 168 Gun 174 | . 7 12 . 6 149 Cannon 33 | . 3 12 . 5 13 Launcher 6 | . . . . . 6 Special . | . . . . . . Kinetic 176 | . 5 12 . 6 153 Thermal 20 | . 3 12 . 5 . Explosive 6 | . . . . . 6 Electromagnetic 11 | . 2 . . . 9 Robot Hit Streak 9 | . 3 8 . 7 9 Robot Miss Streak 4 | . 1 1 . 1 4 Penetration Max 1 | . . . . . 1 Secondary Targets 2 | . . . . . 2 Max Gunslinging Chain 1 | . . . . . 1 Shots Hit Robots 109 | . 3 15 . 8 83 Core Hits 65 | . 2 10 . 3 50 Critical Kills . | . . . . . . Critical Parts Destroyed 1 | . . . . . 1 Critical Strikes 2 | . . . . . 2 Destroy 1 | . . . . . 1 Blast 1 | . . . . . 1 Melee Attacks 13 | . . . . . 13 Impact 13 | . . . . . 13 Slashing . | . . . . . . Piercing . | . . . . . . Sneak Attacks . | . . . . . . Combat Hostiles . | . . . . . . Follow-up Attacks . | . . . . . . Damage Inflicted 3125 | . 55 245 . 115 2710 Guns 1755 | . 32 65 . 46 1612 Cannons 562 | . . 124 . 69 369 Explosions 770 | . 23 56 . . 691 Melee 38 | . . . . . 38 Ramming . | . . . . . . Kinetic 2012 | . 16 65 . 46 1885 Thermal 467 | . 23 180 . 69 195 Explosive 447 | . . . . . 447 Electromagnetic 161 | . 16 . . . 145 Impact 38 | . . . . . 38 Slashing . | . . . . . . Piercing . | . . . . . . Highest Corruption 9 | . . . . 9 . Average Corruption 8 | . . . . 8 . Corruption Purged . | . . . . . . Corruption Blocked . | . . . . . . Effects 7 | . . . . 7 . Matter Fused 2 | . . . . 2 . Heat Flow Errors 3 | . . . . 3 . Data Loss (minor) 2 | . . . . 2 . Overload Shots . | . . . . . . Overflow Damage 111 | . . 28 . . 83 Projectiles 11 | . . . . . 11 Explosions 100 | . . 28 . . 72 Melee . | . . . . . . Knockbacks 3 | . . . . . 3 Impact . | . . . . . . Kinetic 3 | . . . . . 3 Secondary . | . . . . . . Self-Inflicted Damage 159 | . 38 121 . . . Shots 4 | . 1 3 . . . Rammed . | . . . . . . Targets Rammed . | . . . . . . Kicked . | . . . . . . Crushed . | . . . . . . Highest Temperature 382 | . 80 222 . 193 382 Average Temperature 112 | . 36 78 . 91 127 Received Heat Transfer 915 | . . 72 . 18 825 Effects 3 | . . . . . 3 Energy Bleed 1 | . . . . . 1 Interference 2 | . . . . . 2 Siege Activations . | . . . . . . Robots Corrupted . | . . . . . . Combat Hostiles . | . . . . . . Parts Fried . | . . . . . . Impact Corruptions . | . . . . . . Robots Melted . | . . . . . . Combat Hostiles . | . . . . . . Parts Melted 4 | . 1 1 . . 2 Heat Transferred 607 | . 50 309 . 148 100 Parts Sabotaged . | . . . . . . Parts Stolen . | . . . . . . Parts Stripped . | . . . . . . Power Chain Reactions 2 | . 1 . . . 1 Missiles Intercepted . | . . . . . . Alert | -11 -10 -10 -10 -9 -8 ------- Run | Scr Mat Min Exi Min Mat Peak Influence 639 | . 70 236 . 40 639 Initial 27 | . . 27 . . 15 Average 232 | . 20 199 . 38 320 Maximum Alert Level 2 | . . 1 . . 2 Low Security (%) 50 | 100 100 40 . 100 34 Level 1 24 | . . 60 . . 24 Level 2 25 | . . . . . 41 Level 3 . | . . . . . . Level 4 . | . . . . . . Level 5 . | . . . . . . High Security . | . . . . . . Max Security . | . . . . . . Squads Dispatched 5 | . 1 . . . 4 Investigation . | . . . . . . Extermination . | . . . . . . Reinforcement 5 | . 1 . . . 4 Assault . | . . . . . . Garrison . | . . . . . . Intercept . | . . . . . . Searches Triggered . | . . . . . . Construction Impeded . | . . . . . . Haulers Reinforced . | . . . . . . Active Scanning Responses . | . . . . . . Cargo Convoy Interrupts . | . . . . . . Stealth | -11 -10 -10 -10 -9 -8 --------- Run | Scr Mat Min Exi Min Mat Distress Signals 2 | . . . . . 2 Communications Jammed . | . . . . . . Distress Signals . | . . . . . . Times Spotted 63 | . 3 6 . 2 52 Peak Tracking Total 8 | . 2 3 . 2 8 Tactical Retreats 1 | . . 1 . . . Traps | -11 -10 -10 -10 -9 -8 ------- Run | Scr Mat Min Exi Min Mat Traps Triggered . | . . . . . . Indirectly . | . . . . . . Trap Hack Attempts . | . . . . . . Triggered . | . . . . . . Disarmed . | . . . . . . Reprogrammed . | . . . . . . Reused . | . . . . . . Traps Extracted . | . . . . . . Installed . | . . . . . . Triggered . | . . . . . . Machines | -11 -10 -10 -10 -9 -8 ---------- Run | Scr Mat Min Exi Min Mat Machines Disabled 11 | . 2 3 . . 6 Max in Single Turn 3 | . 1 3 . . 3 Machines Sabotaged . | . . . . . . Garrisons Compromised . | . . . . . . Overloaded Fab Kills . | . . . . . . Hacking | -11 -10 -10 -10 -9 -8 --------- Run | Scr Mat Min Exi Min Mat Machines Accessed 10 | . 3 . . . 7 Terminals 7 | . 2 . . . 5 Fabricators . | . . . . . . Repair Stations 2 | . 1 . . . 1 Recycling Units . | . . . . . . Scanalyzers 1 | . . . . . 1 Garrison Access . | . . . . . . Total Hacks 41 | . 11 . . . 30 Successful 22 | . 8 . . . 14 Failed 19 | . 3 . . . 16 Catastrophic 4 | . 1 . . . 3 Database Lockouts . | . . . . . . Manual . | . . . . . . Terminals 35 | . 9 . . . 26 Fabricators . | . . . . . . Repair Stations 4 | . 2 . . . 2 Recycling Units . | . . . . . . Scanalyzers 2 | . . . . . 2 Garrison Access . | . . . . . . Terminal Hacks 17 | . 6 . . . 11 Prototype ID Bank 1 | . 1 . . . . Branch Access Points 1 | . 1 . . . . Alert Level 7 | . 2 . . . 5 Unreport Threat 2 | . . . . . 2 Locate Traps 1 | . . . . . 1 Dispatch Records 2 | . 1 . . . 1 Transport Status 1 | . 1 . . . . Hauler Manifests 1 | . . . . . 1 Zone Layout 1 | . . . . . 1 Fabricator Hacks . | . . . . . . Repair Station Hacks 4 | . 2 . . . 2 Scan Component 2 | . 1 . . . 1 Repair 2 | . 1 . . . 1 Recycling Unit Hacks . | . . . . . . Scanalyzer 1 | . . . . . 1 Insert Component 1 | . . . . . 1 Garrison Access Hacks . | . . . . . . Unauthorized Hacks . | . . . . . . Terminals . | . . . . . . Fabricators . | . . . . . . Repair Stations . | . . . . . . Recycling Units . | . . . . . . Scanalyzers . | . . . . . . Garrison Access . | . . . . . . Data Cores Recovered 1 | . . . . . 1 Used . | . . . . . . Hacking Detections 8 | . 2 . . . 6 Full Trace Events . | . . . . . . Feedback Events . | . . . . . . Feedback Blocked . | . . . . . . Robot Schematics Acquired . | . . . . . . Robots Built . | . . . . . . Authchips . | . . . . . . Time . | . . . . . . Total Robot Build Rating . | . . . . . . Part Schematics Acquired . | . . . . . . Parts Built . | . . . . . . Authchips . | . . . . . . Time . | . . . . . . Total Part Build Rating . | . . . . . . Parts Repaired 1 | . 1 . . . . Time 96 | . 26 . . . 70 Parts Recycled . | . . . . . . Recycled Matter . | . . . . . . Retrieved Matter . | . . . . . . Retrieved Components . | . . . . . . Parts Scanalyzed 1 | . . . . . 1 Part Schematics Acquired . | . . . . . . Parts Damaged . | . . . . . . Bothacking | -11 -10 -10 -10 -9 -8 ------------ Run | Scr Mat Min Exi Min Mat Used RIF Installer . | . . . . . . Robots Hacked . | . . . . . . Non-combat . | . . . . . . Combat . | . . . . . . Robot Hacks Applied . | . . . . . . Relay Couplers Released . | . . . . . . Fabnet Peak Effective % . | . . . . . . Robots Rewired . | . . . . . . Allies Hacked . | . . . . . . Hacks Repelled . | . . . . . . Allies | -11 -10 -10 -10 -9 -8 -------- Run | Scr Mat Min Exi Min Mat Total Allies 5 | . . . . 5 . Largest Group 5 | . . . . 5 5 Highest-Rated Group 83 | . . . . 83 83 Highest-Rated Ally 31 | . . . . 31 31 Total Orders . | . . . . . . Ally Attacks 93 | . . . . . 93 Total Damage 1316 | . . . . . 1316 Kills 13 | . . . . . 13 Allies Corrupted . | . . . . . . Allies Melted . | . . . . . . Intel | -11 -10 -10 -10 -9 -8 ------- Run | Scr Mat Min Exi Min Mat Robot Analysis Total . | . . . . . . Derelict Logs Recovered 1 | . . 1 . . . Drone Launches . | . . . . . . Drone Recoveries . | . . . . . . Exploration | -11 -10 -10 -10 -9 -8 ------------- Run | Scr Mat Min Exi Min Mat Turns Passed 1876 | 41 163 285 36 228 1123 Spaces Moved 1403 | 44 132 213 31 112 871 Core 23 | 18 . 5 . . . Treads 17 | . . . . . 17 Legs 263 | . . . . 109 154 Wheels 268 | 26 132 110 . . . Hover 700 | . . . . . 700 Flight 132 | . . 98 31 3 . Fastest Speed 42 | 50 80 80 117 120 42 Average Speed 96 | 67 80 109 117 187 85 Slowest Speed 200 | 80 80 200 117 200 200 Overloaded Moves . | . . . . . . Propulsion Burnouts . | . . . . . . Robots Hopped . | . . . . . . Cave-ins Triggered . | . . . . . . Exploration Rate (%) 34 | 3 27 65 8 40 63 Regions Visited 5 Branch Regions 3 Pre-discovered Areas 1 | . . 1 . . . Known Exits Taken 1 | . 1 . . . . Unknown Exits Taken 4 | 1 . 1 1 1 . Scrap Searched . | . . . . . . Spaces Dug . | . . . . . . Terrain Destroyed 94 | . 3 13 . . 78 Melee . | . . . . . . Projectile 6 | . . . . . 6 AOE 88 | . 3 13 . . 72 Terrain Rammed . | . . . . . . Walls Destroyed . | . . . . . . Machines Disabled . | . . . . . . Actions | -11 -10 -10 -10 -9 -8 --------- Run | Scr Mat Min Exi Min Mat Total 1747 | 54 180 242 30 121 1120 Wait 114 | . 38 6 . . 70 Move 1398 | 43 131 212 30 111 871 Hop . | . . . . . . Pick Up 48 | 5 3 6 . 2 32 Fast Attach 5 | 1 . . . . 4 Attach 28 | 5 2 4 . 2 15 Detach 3 | . 1 . . . 2 Swap 23 | . . 2 . . 21 Drop 25 | . . . . . 25 Fire 90 | . 5 12 . 6 67 Melee 13 | . . . . . 13 Ram . | . . . . . . Kick . | . . . . . . Crush . | . . . . . . Escape Stasis . | . . . . . . Rewire . | . . . . . . Trap . | . . . . . . Miscellaneous . | . . . . . . Route ------- -11/Scrapyard -10/Materials (discovered 2 exits: *Min x2) -10/Mines -10/Exiles -9/Mines -8/Materials (discovered 2 exits: *Fac x2) History --------- Turn | Location | Event 2 | -11/Scrapyard | Met Revision 17 15 | -11/Scrapyard | Discovered new exit (range 15) 42 | -11/Scrapyard | Entered Materials 56 | -10/Materials | Discovered new exit (range 16) 166 | -10/Materials | Repaired Wheel 181 | -10/Materials | Identified exit to Mines 205 | -10/Materials | Entered Mines 209 | -10/Mines | Met a Derelict bent on vengeance 230 | -10/Mines | Assembled infested the area 308 | -10/Mines | Build established: Mutant 416 | -10/Mines | Found a damaged Exp. Sensor Array with a note attached 419 | -10/Mines | Found Prototype Device 423 | -10/Mines | Identified Exp. Sensor Array 452 | -10/Mines | Learned location of Storage (-8) 475 | -10/Mines | Learned 2 Materials zone layouts 483 | -10/Mines | Discovered new exit (range 5) 490 | -10/Mines | Entered Exiles 509 | -10/Exiles | Discovered new exit (range 15) 526 | -10/Exiles | Entered Mines 570 | -9/Mines | Lost 3 parts (1n1u1w) 735 | -9/Mines | Discovered new exit (range 3) 748 | -9/Mines | Assisted by bots powering up and referring to "LRC-V3" 754 | -9/Mines | Entered Materials 754 | -8/Materials | Accompanied by 5 allies 754 | -8/Materials | Evolved 4 slots: Power x1, Propulsion x1, Utility x1, Weapon x1 755 | -8/Materials | Identified exit to Factory 759 | -8/Materials | Led the pair of lost Derelicts to an unsafe place 843 | -8/Materials | Build established: Scavenger-Mutant 1317 | -8/Materials | Build established: Gunner 1395 | -8/Materials | Discovered exit to Factory (range 16) 1826 | -8/Materials | Core integrity fell below 50% 1877 | -8/Materials | Self-destructed Last Messages --------------- 01822_ Acquired 4 matter. 01823_ Matter Pump disabled. 01824_ O-16 Technician: "IFF HANDSHAKE FAILED. SECURING TERMINAL." 01828_ ALERT: Hostiles spotted, dispatching reinforcements to Terminal M012. 01831_ U-05 Engineer destroyed. 01831_ R-06 Scavenger collects Flight Unit. 01838_ Slug penetrates Wall. 01841_ Destroyed Aluminum Leg. 01841_ G-47 Trooper knocked back. 01844_ Slug penetrates G-47 Trooper. 01844_ G-47 Trooper destroyed. 01844_ G-47 Trooper knocked back. 01847_ Slug penetrates Wall. 01847_ Destroyed Aluminum Leg. 01847_ G-47 Trooper knocked back. 01850_ Slug penetrates G-47 Trooper. 01859_ Gauss Rifle destroyed. 01871_ Critical hit (Burn: +37). 01874_ Lgt. Nuclear Core destroyed. Map ----- +----------------------------------------------------+ | """ # #?????????##?????# #?????????????????? | | # #????????????????# #?????????????????? | | + #????????????????# #?????????????????? | | #### # "Y" #????????????????#%#?????????????????? | | ???# # """ #???????????????## ##????????????????? | | #### # #????????########% ####?????????????? | | # ########????????#! / +?????????????? | | ###?????????????# """ "%% ##?????????????? | | #?????????????#" """ # #??????????????? | | #?????????????#T """ # #??????????????? | | #?????????????#" # % #??????????????? | | # #????#####????# ] # ##?????????????? | | #### #????# ????######## #+#???????????? | | ???# < #????# ???????????# #???????????? | | ???# #????# ??????????## %[ #???????????? | | ???#####????# ?########## *[[* #### ???????? | | ????????????# + %[%[ #??????? | | ????????????# ?######### [= #??????? | | ????????????# ?# # #??????? | | ????????????# ?? """" + "%" #??????? | | ????????????# ?? """" # """ #??????? | | ????????????#####?? """" !# """ o #??????? | | ????????????#####?? ?# #??????? | | ????????????# ??######?# = ??????? | | ????????????# T ########## #####+???????? | | ????????????# + @ #????????????? | | ????????????# # !]] +????????????? | | ????????????# # !] #????????????? | | ????????????# + ]] +????????????? | | ????????????# #############"T"####????????????? | | ????????????# ?????????????"""#???????????????? | | ????????????# ??????????????###???????????????? | | ????????????#####????????????????????????????????? | | | | | | | | | | | | | | | | | | | | | | | | | | | | | | | | | | | +----------------------------------------------------+ Best States ------------- Heat Dissipation 31 Energy Generation 23 Energy Capacity 265 Matter Stores 300 Matter Capacity 300 Sight Range 16 Robot Scan Range 20 Terrain Scan Density 10 Propulsion Shielding 66 Weapon Cycling 15 Evasion (%) 56 Recoil Reduction 1 Defensive Hacking 10 Item Schematics ----------------- None Robot Schematics ------------------ None Fabricated ------------ Nothing Alien Tech Used ----------------- None Achievements -------------- None Challenges ------------ None Game ------ Seed TeslaSurgeClaws Manual? 0 Play Time 00:22:27 Cumulative 41.1 hours Start 2022.03.27 @ 20:42:15 End 2022.03.27 @ 21:04:19 Sessions 1 Manual Loads 0 Difficulty Rogue Special Mode None Game No. 123 Rogue 123 Adventurer 0 Explorer 0 Win Type - Total 0 Types 0/0/0/0/0/0/0/0/0 Lore% 32 Gallery% 45 Achievement% 34 Wizard Run 0 Options --------- ASCII 0 Keyboard 0 Movement Mouse Keybinds 0 Fullscreen 1 Font 18/SmallcapsGlow Map View 76x50 Tactical HUD 1 Map Filters NONE Filters NONE Steam 1 RUN: 430bd18f-3cac-437b-9176-d7368214523c